Cogmind - Beta 10.2 @@@ ROGUE MODE // 2021.12.28 @ 14:23:35 // Winter2019/RPGLIKE Player: FontPeg Result: Self-destructed Performance ------------- Evolutions (1) 500 Regions Visited (3) 600 Robots Destroyed (17) 85 Value Destroyed (410) 410 Prototype IDs (0) 0 Alien Tech Used (0) 0 Bonus (33) 33 TOTAL SCORE: 1628 Bonus ------- Follower Combat Kills 33 Cogmind --------- Core Integrity 277/750 Matter 290/300 Energy 244/250 System Corruption 0% Temperature Cool (38) Movement Flying (37) Location -9/Materials Parts ------- > --- POWER (1) -------- Ion Engine > --- PROPULSION (2) --- Flight Unit Flight Unit > --- UTILITY (2) ------ Signal Interpreter Improved Targeting Computer > --- WEAPON (2) ------- Beam Cannon > --- INVENTORY (2) ---- Flight Unit Peak State ------------ > --- POWER ------------ Ion Engine > --- PROPULSION ------- Flight Unit Flight Unit > --- UTILITY ---------- Visual Processing Unit Signal Interpreter > --- WEAPON ----------- Small Laser Light Assault Rifle > --- INVENTORY -------- Light Assault Rifle [Rating: 8] Favorites ----------- Power Ion Engine Engine Ion Engine Propulsion Flight Unit Flight Unit Flight Unit Utility Signal Interpreter Processor Signal Interpreter Weapon Small Laser Energy Gun Small Laser Energy Cannon Beam Cannon Ballistic Gun Light Assault Rifle Special Weapon Mining Laser Build | -11 -10 -10 -9 ------- Run | Scr Mat Min Mat Slots Evolved 3 | 3 . . . Power . | . . . . Propulsion 1 | 1 . . . Utility 1 | 1 . . . Weapon 1 | 1 . . . Parts Attached 13 | 3 2 6 2 Power 1 | 1 . . . Engine 1 | 1 . . . Core . | . . . . Reactor . | . . . . Propulsion 4 | . . 4 . Treads . | . . . . Leg . | . . . . Wheel . | . . . . Hover . | . . . . Flight 4 | . . 4 . Utility 3 | . 2 . 1 Device . | . . . . Storage . | . . . . Processor 3 | . 2 . 1 Hackware . | . . . . Protection . | . . . . Artifact . | . . . . Weapon 5 | 2 . 2 1 Energy Gun 1 | 1 . . . Energy Cannon 1 | . . . 1 Ballistic Gun 2 | 1 . 1 . Ballistic Cannon . | . . . . Launcher . | . . . . Special Weapon 1 | . . 1 . Impact Weapon . | . . . . Slashing Weapon . | . . . . Piercing Weapon . | . . . . Special Melee Weapon . | . . . . Unidentified Prototypes . | . . . . Parts Lost 2 | . . . 2 Power . | . . . . Propulsion . | . . . . Utility . | . . . . Weapon 2 | . . . 2 Highest Loss Streak 2 | . . . 2 Average Slot Usage (%) 81 | . 62 89 98 Engine 14 | . 14 14 14 Flight 13 | . . 17 28 Processor 24 | . 19 28 28 Energy Gun 13 | . 14 14 12 Ballistic Gun 9 | . 14 12 . Special Weapon 3 | . . 1 13 Naked Turns . | . . . . Heaviest Build 8 | 7 7 7 8 Greatest Support 8 | 3 3 8 8 Greatest Overweight (x) 2 | 2 2 2 . Average Overweight (x) . | 1 2 . . Largest Inventory Capacity 2 | 1 1 2 2 Average Capacity 1 | . 1 1 2 Most Carried 2 | 1 1 2 2 Average Carried 1 | . 1 1 1 Final Capacity 2 | 1 1 2 2 Final Carried 2 | 1 1 2 1 Class Distribution -------------------- 53% | Mutant 46% | Hacker-Mutant Dominant Class ---------------- Mutant | -10/Materials Hacker-Mutant | -10/Mines Hacker-Mutant | -9/Materials Resources | -11 -10 -10 -9 ----------- Run | Scr Mat Min Mat Matter Collected 340 | 230 36 53 21 Remotely . | . . . . Salvage Created 247 | . 165 46 36 Parts 27 | . 12 7 8 Haulers Intercepted . | . . . . Recyclers Shooed . | . . . . Parts Field Recycled . | . . . . Retrieved Matter . | . . . . Parts Self-Destructed . | . . . . Prevented . | . . . . Kills | -11 -10 -10 -9 ------- Run | Scr Mat Min Mat Combat Hostiles Destroyed 13 | . 2 5 6 Guns 8 | . 2 5 1 Cannons 4 | . . . 4 Classes Destroyed 4 | . 2 1 1 Watcher 4 | . 3 . 1 Swarmer 5 | . . 5 . Grunt 7 | . 2 . 5 Sentry 1 | . . . 1 Best Kill Streak 5 | . 5 3 3 Combat Bots Only 3 | . 2 3 3 Max Kills in Single Turn 1 | . 1 1 1 Gunslinging . | . . . . Exploded . | . . . . Melee . | . . . . Uniques/NPCs Destroyed . | . . . . Combat | -11 -10 -10 -9 -------- Run | Scr Mat Min Mat Damage Taken 845 | . 143 205 497 Core 695 | . 113 165 417 Absorbed by Shields . | . . . . Redirected to Core 498 | . 102 126 270 Core Remaining (%) 91 | 100 . 82 . Volleys Fired 57 | . 16 14 27 Largest 2 | . 2 2 2 Hottest 140 | . 60 60 140 Shots Fired 102 | . 32 28 42 Gun 80 | . 32 28 20 Cannon 4 | . . . 4 Launcher . | . . . . Special 18 | . . . 18 Kinetic 30 | . 16 14 . Thermal 72 | . 16 14 42 Explosive . | . . . . Electromagnetic . | . . . . Robot Hit Streak 12 | . 7 6 12 Robot Miss Streak 3 | . 3 3 2 Penetration Max . | . . . . Secondary Targets 1 | . . 1 . Max Gunslinging Chain 1 | . . 1 . Shots Hit Robots 63 | . 18 14 31 Core Hits 25 | . 10 5 10 Critical Hits . | . . . . Critical Kills . | . . . . Critical Parts Destroyed . | . . . . Melee Attacks . | . . . . Impact . | . . . . Slashing . | . . . . Piercing . | . . . . Sneak Attacks . | . . . . Combat Hostiles . | . . . . Follow-up Attacks . | . . . . Damage Inflicted 856 | . 195 138 523 Guns 522 | . 195 138 189 Cannons 70 | . . . 70 Explosions . | . . . . Melee . | . . . . Ramming . | . . . . Kinetic 110 | . 71 39 . Thermal 746 | . 124 99 523 Explosive . | . . . . Electromagnetic . | . . . . Impact . | . . . . Slashing . | . . . . Piercing . | . . . . Highest Corruption . | . . . . Average Corruption . | . . . . Corruption Purged . | . . . . Overload Shots . | . . . . Overflow Damage 6 | . . . 6 Projectiles 6 | . . . 6 Explosions . | . . . . Melee . | . . . . Knockbacks . | . . . . Impact . | . . . . Kinetic . | . . . . Secondary . | . . . . Self-Inflicted Damage . | . . . . Shots . | . . . . Rammed . | . . . . Targets Rammed . | . . . . Kicked . | . . . . Crushed . | . . . . Highest Temperature 234 | . 34 24 234 Average Temperature 47 | . 11 10 65 Received Heat Transfer 366 | . 78 . 288 Effects 3 | . . . 3 Interference 3 | . . . 3 Siege Activations . | . . . . Robots Corrupted . | . . . . Combat Hostiles . | . . . . Parts Fried . | . . . . Impact Corruptions . | . . . . Robots Melted 1 | . . . 1 Combat Hostiles 1 | . . . 1 Parts Melted 2 | . . 1 1 Heat Transferred 1623 | . 275 225 1123 Parts Sabotaged . | . . . . Parts Stolen . | . . . . Parts Stripped . | . . . . Power Chain Reactions . | . . . . Missiles Intercepted . | . . . . Alert | -11 -10 -10 -9 ------- Run | Scr Mat Min Mat Peak Influence 306 | . 188 238 306 Initial 73 | . . 73 33 Average 112 | . 80 109 185 Maximum Alert Level 1 | . . 1 1 Low Security (%) 83 | 100 100 88 48 Level 1 16 | . . 11 51 Level 2 . | . . . . Level 3 . | . . . . Level 4 . | . . . . Level 5 . | . . . . High Security . | . . . . Max Security . | . . . . Squads Dispatched 4 | . 2 . 2 Investigation 3 | . 2 . 1 Extermination . | . . . . Reinforcement 1 | . . . 1 Assault . | . . . . Garrison . | . . . . Intercept . | . . . . Construction Impeded . | . . . . Haulers Reinforced . | . . . . Stealth | -11 -10 -10 -9 --------- Run | Scr Mat Min Mat Distress Signals 4 | . 2 . 2 Communications Jammed . | . . . . Distress Signals . | . . . . Times Spotted 26 | . 8 8 10 Peak Tracking Total 5 | . 4 3 5 Tactical Retreats 3 | . 1 2 . Traps | -11 -10 -10 -9 ------- Run | Scr Mat Min Mat Traps Triggered . | . . . . Indirectly . | . . . . Trap Hack Attempts . | . . . . Triggered . | . . . . Disarmed . | . . . . Reprogrammed . | . . . . Reused . | . . . . Traps Extracted . | . . . . Installed . | . . . . Triggered . | . . . . Machines | -11 -10 -10 -9 ---------- Run | Scr Mat Min Mat Machines Disabled . | . . . . Max in Single Turn . | . . . . Machines Sabotaged . | . . . . Garrisons Compromised . | . . . . Overloaded Fab Kills . | . . . . Fab Network Shutdowns . | . . . . Hacking | -11 -10 -10 -9 --------- Run | Scr Mat Min Mat Machines Accessed 6 | . 3 1 2 Terminals 2 | . 1 1 . Fabricators . | . . . . Repair Stations 1 | . . . 1 Recycling Units 3 | . 2 . 1 Scanalyzers . | . . . . Garrison Access . | . . . . Total Hacks 8 | . 4 2 2 Successful 6 | . 3 1 2 Failed 2 | . 1 1 . Catastrophic 1 | . . 1 . Database Lockouts . | . . . . Manual 9 | . 4 2 3 Terminals 4 | . 2 2 . Fabricators . | . . . . Repair Stations 1 | . . . 1 Recycling Units 3 | . 2 . 1 Scanalyzers . | . . . . Garrison Access . | . . . . Terminal Hacks 1 | . . 1 . Unreport Threat 1 | . . 1 . Fabricator Hacks . | . . . . Repair Station Hacks . | . . . . Recycling Unit Hacks . | . . . . Scanalyzer . | . . . . Garrison Access Hacks . | . . . . Unauthorized Hacks 5 | . 3 . 2 Terminals 1 | . 1 . . Botnet 1 | . 1 . . Fabricators . | . . . . Repair Stations 1 | . . . 1 Mechanics 1 | . . . 1 Recycling Units 3 | . 2 . 1 Tunnel 3 | . 2 . 1 Scanalyzers . | . . . . Garrison Access . | . . . . Data Cores Recovered . | . . . . Used . | . . . . Hacking Detections 2 | . 1 1 . Full Trace Events . | . . . . Feedback Events . | . . . . Feedback Blocked . | . . . . Robot Schematics Acquired . | . . . . Robots Built . | . . . . Matter . | . . . . Time . | . . . . Total Robot Build Rating . | . . . . Part Schematics Acquired . | . . . . Parts Built . | . . . . Matter . | . . . . Time . | . . . . Total Part Build Rating . | . . . . Parts Repaired . | . . . . Time . | . . . . Parts Recycled . | . . . . Recycled Matter . | . . . . Retrieved Matter . | . . . . Retrieved Components . | . . . . Parts Scanalyzed . | . . . . Part Schematics Acquired . | . . . . Parts Damaged . | . . . . Bothacking | -11 -10 -10 -9 ------------ Run | Scr Mat Min Mat Used RIF Installer . | . . . . Robots Hacked . | . . . . Non-combat . | . . . . Combat . | . . . . Robot Hacks Applied . | . . . . Relay Couplers Released . | . . . . Robots Rewired . | . . . . Allies Hacked . | . . . . Hacks Repelled . | . . . . Allies | -11 -10 -10 -9 -------- Run | Scr Mat Min Mat Total Allies 1 | . . 1 . Largest Group 1 | . . 1 1 Highest-Rated Group 31 | . . 31 31 Highest-Rated Ally 31 | . . 31 31 Total Orders . | . . . . Ally Attacks 13 | . . . 13 Total Damage 213 | . . . 213 Kills 1 | . . . 1 Allies Corrupted . | . . . . Allies Melted . | . . . . Intel | -11 -10 -10 -9 ------- Run | Scr Mat Min Mat Robot Analysis Total . | . . . . Derelict Logs Recovered 1 | . . 1 . Drone Launches . | . . . . Drone Recoveries . | . . . . Exploration | -11 -10 -10 -9 ------------- Run | Scr Mat Min Mat Turns Passed 787 | 40 276 275 196 Spaces Moved 637 | 28 151 331 127 Core 234 | 28 151 55 . Treads . | . . . . Legs . | . . . . Wheels . | . . . . Hover . | . . . . Flight 403 | . . 276 127 Fastest Speed 37 | 50 150 37 37 Average Speed 77 | 119 150 56 37 Slowest Speed 150 | 150 150 150 37 Overloaded Moves . | . . . . Propulsion Burnouts . | . . . . Robots Hopped . | . . . . Cave-ins Triggered . | . . . . Exploration Rate (%) 26 | 4 23 64 14 Regions Visited 3 Branch Regions 1 Pre-discovered Areas 3 | . 2 . 1 Known Exits Taken 2 | . 1 1 . Unknown Exits Taken 1 | 1 . . . Scrap Searched 2 | . . 2 . Spaces Dug . | . . . . Terrain Destroyed 3 | . . . 3 Melee . | . . . . Projectile 3 | . . . 3 AOE . | . . . . Terrain Rammed . | . . . . Walls Destroyed . | . . . . Machines Disabled . | . . . . Actions | -11 -10 -10 -9 --------- Run | Scr Mat Min Mat Total 798 | 34 171 395 198 Wait 72 | 1 3 31 37 Move 634 | 27 150 330 127 Hop . | . . . . Pick Up 4 | 2 . 2 . Fast Attach 9 | 3 2 3 1 Attach 1 | . . . 1 Detach . | . . . . Swap 3 | . . 3 . Drop 7 | 1 . 5 1 Fire 57 | . 16 14 27 Melee . | . . . . Ram . | . . . . Kick . | . . . . Crush . | . . . . Escape Stasis . | . . . . Rewire . | . . . . Trap . | . . . . Miscellaneous 11 | . . 7 4 Route ------- -11/Scrapyard -10/Materials -10/Mines (discovered 2 exits: *Mat x2) -9/Materials History --------- Turn | Location | Event 10 | -11/Scrapyard | Upgraded with Propulsion slot (x1) 10 | -11/Scrapyard | Upgraded with Utility slot (x1) 10 | -11/Scrapyard | Upgraded with Weapon slot (x1) 15 | -11/Scrapyard | Discovered new exit (range 16) 41 | -11/Scrapyard | Entered Materials 305 | -10/Materials | Discovered new exit (range 8) 313 | -10/Materials | Build established: Mutant 316 | -10/Materials | Identified exit to Mines 317 | -10/Materials | Entered Mines 405 | -10/Mines | Reached level 2 486 | -10/Mines | Discovered new exit (range 8) 488 | -10/Mines | Identified exit to Materials 506 | -10/Mines | Learned Materials emergency access door positions 532 | -10/Mines | Discovered exit to Materials (range 5) 542 | -10/Mines | Received a Mining Laser from a helpful Derelict 592 | -10/Mines | Entered Materials 592 | -9/Materials | Accompanied by 1 ally 594 | -9/Materials | Reached level 3 711 | -9/Materials | Build established: Hacker-Mutant 754 | -9/Materials | Core integrity fell below 50% 765 | -9/Materials | Reached level 4 788 | -9/Materials | Self-destructed Last Messages --------------- 00742_ U-05 Engineer builds a Wall. 00746_ G-34 Mercenary heat spikes uncontrollably. 00747_ U-05 Engineer lays Concrete. 00748_ G-34 Mercenary destroyed. 00750_ U-05 Engineer builds a Wall. 00751_ Overheating: System interference. 00751_ Mining Laser temporarily disabled. 00751_ Sml. Laser temporarily disabled. 00751_ R-06 Scavenger collects Sml. Laser. 00753_ Overheating: System interference. 00753_ Signal Interpreter temporarily disabled. 00760_ Sml. Laser destroyed. 00765_ Reached level 4. 00765_ G-34 Mercenary destroyed. 00776_ Mining Laser destroyed. 00783_ G-34 Mercenary heat spikes uncontrollably. 00784_ G-34 Mercenary overheating. 00784_ Melted Ion Engine. 00785_ G-34 Mercenary heat damages core (-5). 00787_ Used Protomatter to restore core integrity (+36, depleted) Map ----- +----------------------------------------------------+ | ?????????????????????????????????????????????????? | | ???????????????????########??????????????????????? | | ???????????????????# #??????????????????????? | | ???????????????????#[ !/ #??????????????????????? | | ???????????????????# !/ #??????????????????????? | | ???????????????????+ !/ #??????????????????????? | | ???????????????????# #??????????????????????? | | ???????????????????# #??????????????????????? | | ???????????????????####+# #??????????????????????? | | ??????????????????????# #????????????????????????? | | ??????????????????????# #????????????????????????? | | ??????????????????????# #????????????????????????? | | ????????????????????### #????????????????????????? | | ?????????????????#### #+####?????????????????????? | | ?????????????????# #?????????????????????? | | ?????????????????# """#?????? #????????????? | | ?????????????????# """ Y"#????? #????????????? | | ?????????????????# """ """#???# ! ??????????????? | | ?????????????????# """ #?? # ???????????????? | | ?????????????????# #? + ????????????????? | | ?????????????????# #? #?????????????????? | | ?????????????????# * # #?????????????????? | | ?????????????????#######+###r #?????????????????? | | ??????????????????????# %% ######????????????? | | ??????????????????????#=[! % + ???????? | | ?????????????????????##=!@""" ### ???????? | | ?????????????????????## %%""" #??????????????? | | ?????????#######?????## """ #??????????????? | | ?????????# ######## ####???????????? | | ?????????# ????????? | | ?????????# ????????? | | ?????????# ?????????? | | ?????????# [ ###+########## ?????????? | | ?????????##!%=## #????# ######??????????? | | ??????????# ! ## #????? #???????????????? | | ??????????# ## #?????? #???????????????? | | ??????????# ## """ #?????? +???????????????? | | ??????????# ## """"" #??????? #???????????????? | | ??????????# ## """"" #????????#???????????????? | | ?????????## ## """"" #????????????????????????? | | ########## # """ #????????????????????????? | | # #????????????????????????? | | ##########????????????????????????? | | #?????????????????????????????????? | | ###+### #?????????????????????????????????? | | m ## #######?????????????????????????????????? | | ## #???????????????????????????????????????? | | ## #???????????????????????????????????????? | | ##### ! #???????????????????????????????????????? | | ????# #???????????????????????????????????????? | +----------------------------------------------------+ Best States ------------- Heat Dissipation 31 Energy Generation 10 Energy Capacity 250 Matter Stores 300 Matter Capacity 300 Sight Range 20 Terrain Scan Density 10 Resistance: KI 5 Resistance: TH 5 Resistance: EX 5 Evasion (%) 62 Targeting Accuracy 6 Offensive Hacking 20 Defensive Hacking 10 Item Schematics ----------------- None Robot Schematics ------------------ None Fabricated ------------ Nothing Alien Tech Used ----------------- None Achievements -------------- None Challenges ------------ None RPGLIKE | -11 -10 -10 -9 --------- Run | Scr Mat Min Mat Levels Raised 3 | . . 1 2 XP Earned 7746 | 3000 790 1325 2631 XP Spent 5955 | 3000 . 1405 1550 Upgrades 20 | 8 . 7 5 Propulsion Slot 1 | 1 . . . Utility Slot 1 | 1 . . . Weapon Slot 1 | 1 . . . Core Integrity 3 | . . 3 . Heat Dissipation 1 | 1 . . . Inventory Capacity 2 | 1 . 1 . Sight Range 2 | . . 1 1 Hack Attack % 4 | 3 . . 1 Hack Defense % 2 | . . 2 . KI Resistance % 1 | . . . 1 TH Resistance % 1 | . . . 1 EX Resistance % 1 | . . . 1 Protomatter Created 77 | . . 48 29 Integrity Restored 222 | . . 144 78 Core 222 | . . 144 78 Protomatter Decayed . | . . . . Game ------ Seed ReactiveDataLog Manual? 0 Play Time 00:14:57 Cumulative 101.0 hours Start 2021.12.28 @ 14:12:25 End 2021.12.28 @ 14:23:35 Sessions 1 Manual Loads 0 Difficulty Rogue Special Mode Winter2019/RPGLIKE Game No. 144 Rogue 144 Adventurer 0 Explorer 0 Win Type - Total 1 Types 1/0/0/0/0/0/0/0/0 Lore% 46 Gallery% 57 Achievement% 45 Wizard Run 0 Options --------- ASCII 0 Keyboard 0 Movement Mouse Keybinds 0 Fullscreen 1 Font 18/Terminus Map View 76x50 Tactical HUD 1 Map Filters NONE Filters NONE Steam 1 RUN: ae077ead-9336-4aba-961b-7e6f7cfa947e